fUSD/lending_fUSD_20260517
["ID","MTS","AMOUNT","RATE_DAILY","PERIOD"]
[422438390,1778947841000,-500.0,0.00015,2]
[422438393,1778947841000,-500.0,0.00015,2]
[422438394,1778947841000,-500.0,0.00015,2]
[422438392,1778947841000,-500.0,0.00015,2]
[422438338,1778947841000,-150.1563238,0.00014986,2]
[422438381,1778947841000,-500.0,0.00015,2]
[422438368,1778947841000,-151.0,0.00015,2]
[422438380,1778947841000,-500.0,0.00015,2]
[422438365,1778947841000,-198.911634,0.00015,2]
[422438366,1778947841000,-198.911634,0.00015,2]
[422438347,1778947841000,-265.32239029,0.00014986,2]
[422438344,1778947841000,-255.45324773,0.00014986,2]
[422438342,1778947841000,-151.38609086,0.00014986,2]
[422438350,1778947841000,-300.0,0.00014999,2]
[422438340,1778947841000,-205.77084112,0.00014986,2]
[422438349,1778947841000,-300.0,0.00014999,2]
[422438343,1778947841000,-150.0,0.00014986,2]
[422438348,1778947841000,-177.29111731,0.0001499,2]
[422438345,1778947841000,-150.0,0.00014986,2]
[422438346,1778947841000,-150.00000001,0.00014986,2]
[422438352,1778947841000,-3554167.90294608,0.00015,2]
[422438361,1778947841000,-198.911634,0.00015,2]
[422438341,1778947841000,-150.90979649,0.00014986,2]
[422438362,1778947841000,-198.911634,0.00015,2]
[422438351,1778947841000,-352.0203254,0.00014999,2]
[422438364,1778947841000,-198.911634,0.00015,2]
[422438367,1778947841000,-198.911634,0.00015,2]
[422438356,1778947841000,-151.0,0.00015,2]
[422438360,1778947841000,-198.911634,0.00015,2]
[422438359,1778947841000,-151.0,0.00015,2]
[422438363,1778947841000,-198.911634,0.00015,2]
[422438358,1778947841000,-151.0,0.00015,2]
[422438357,1778947841000,-151.0,0.00015,2]
[422438355,1778947841000,-3218498.14554317,0.00015,2]
[422438353,1778947841000,-2076.26775754,0.00015,2]
[422438354,1778947841000,-8083.22155272,0.00015,2]
[422438446,1778947842000,-500.0,0.00015,2]
[422438436,1778947842000,-500.0,0.00015,2]
[422438431,1778947842000,-500.0,0.00015,2]
[422438426,1778947842000,-927.094342,0.00015,2]
[422438432,1778947842000,-500.0,0.00015,2]
[422438430,1778947842000,-500.0,0.00015,2]
[422438428,1778947842000,-500.0,0.00015,2]
[422438423,1778947842000,-500.0,0.00015,2]
[422438434,1778947842000,-500.0,0.00015,2]
[422438437,1778947842000,-500.0,0.00015,2]
[422438433,1778947842000,-500.0,0.00015,2]
[422438438,1778947842000,-500.0,0.00015,2]
[422438444,1778947842000,-500.0,0.00015,2]
[422438441,1778947842000,-500.0,0.00015,2]
[422438443,1778947842000,-500.0,0.00015,2]
[422438445,1778947842000,-500.0,0.00015,2]
[422438439,1778947842000,-500.0,0.00015,2]
[422438440,1778947842000,-500.0,0.00015,2]
[422438442,1778947842000,-500.0,0.00015,2]
[422438447,1778947842000,-500.0,0.00015,2]
[422438449,1778947842000,-500.0,0.00015,2]
[422438454,1778947842000,-500.0,0.00015,2]
[422438451,1778947842000,-500.0,0.00015,2]
[422438452,1778947842000,-500.0,0.00015,2]
[422438425,1778947842000,-500.0,0.00015,2]
[422438435,1778947842000,-500.0,0.00015,2]
[422438429,1778947842000,-500.0,0.00015,2]
[422438453,1778947842000,-500.0,0.00015,2]
[422438424,1778947842000,-927.094342,0.00015,2]
[422438397,1778947842000,-500.0,0.00015,2]
[422438398,1778947842000,-500.0,0.00015,2]
[422438407,1778947842000,-500.0,0.00015,2]
[422438404,1778947842000,-500.0,0.00015,2]
[422438406,1778947842000,-500.0,0.00015,2]
[422438409,1778947842000,-500.0,0.00015,2]
[422438402,1778947842000,-500.0,0.00015,2]
[422438410,1778947842000,-927.094342,0.00015,2]
[422438401,1778947842000,-500.0,0.00015,2]
[422438399,1778947842000,-500.0,0.00015,2]
[422438400,1778947842000,-500.0,0.00015,2]
[422438408,1778947842000,-500.0,0.00015,2]
[422438427,1778947842000,-500.0,0.00015,2]
[422438403,1778947842000,-927.094342,0.00015,2]
[422438422,1778947842000,-500.0,0.00015,2]
[422438412,1778947842000,-927.094342,0.00015,2]
[422438411,1778947842000,-500.0,0.00015,2]
[422438414,1778947842000,-500.0,0.00015,2]
[422438413,1778947842000,-500.0,0.00015,2]
[422438420,1778947842000,-500.0,0.00015,2]
[422438419,1778947842000,-927.094342,0.00015,2]
[422438421,1778947842000,-500.0,0.00015,2]
[422438415,1778947842000,-500.0,0.00015,2]
[422438416,1778947842000,-500.0,0.00015,2]
[422438418,1778947842000,-500.0,0.00015,2]
[422438417,1778947842000,-927.094342,0.00015,2]
[422438405,1778947842000,-927.094342,0.00015,2]
[422438455,1778947842000,-500.0,0.00015,2]
[422438456,1778947842000,-500.0,0.00015,2]
[422438448,1778947842000,-500.0,0.00015,2]
[422438492,1778947842000,-151.0,0.00015,2]
[422438490,1778947842000,-1410.422056,0.00015,2]
[422438496,1778947842000,-177.904356,0.00015,2]
[422438497,1778947842000,-151.0,0.00015,2]
[422438495,1778947842000,-151.0,0.00015,2]
[422438491,1778947842000,-1410.422056,0.00015,2]
[422438493,1778947842000,-151.0,0.00015,2]
[422438494,1778947842000,-177.904356,0.00015,2]
[422438510,1778947842000,-900.0,0.00015068,2]
[422438499,1778947842000,-151.0,0.00015,2]
[422438498,1778947842000,-177.904356,0.00015,2]
[422438501,1778947842000,-151.0,0.00015,2]
[422438489,1778947842000,-1410.422056,0.00015,2]
[422438500,1778947842000,-177.904356,0.00015,2]
[422438502,1778947842000,-177.904356,0.00015,2]
[422438508,1778947842000,-163.42,0.00015036,2]
[422438504,1778947842000,-177.904356,0.00015,2]
[422438503,1778947842000,-177.904356,0.00015,2]
[422438522,1778947842000,-298.496159,0.00015068,2]
[422438525,1778947842000,-363.633174,0.00015068,2]
[422438523,1778947842000,-298.496159,0.00015068,2]
[422438524,1778947842000,-298.496159,0.00015068,2]
[422438511,1778947842000,-298.496159,0.00015068,2]
[422438514,1778947842000,-298.496159,0.00015068,2]
[422438513,1778947842000,-298.496159,0.00015068,2]
[422438450,1778947842000,-500.0,0.00015,2]
[422438506,1778947842000,-177.904356,0.00015,2]
[422438487,1778947842000,-1410.422056,0.00015,2]
[422438517,1778947842000,-298.496159,0.00015068,2]
[422438485,1778947842000,-1410.422056,0.00015,2]
[422438457,1778947842000,-500.0,0.00015,2]
[422438520,1778947842000,-298.496159,0.00015068,2]
[422438458,1778947842000,-500.0,0.00015,2]
[422438460,1778947842000,-500.0,0.00015,2]
[422438471,1778947842000,-500.0,0.00015,2]
[422438465,1778947842000,-500.0,0.00015,2]
[422438462,1778947842000,-500.0,0.00015,2]
[422438488,1778947842000,-1410.422056,0.00015,2]
[422438464,1778947842000,-500.0,0.00015,2]
[422438474,1778947842000,-151.0,0.00015,2]
[422438459,1778947842000,-500.0,0.00015,2]
[422438473,1778947842000,-151.0,0.00015,2]
[422438472,1778947842000,-170.940753,0.00015,2]
[422438467,1778947842000,-500.0,0.00015,2]
[422438463,1778947842000,-500.0,0.00015,2]
[422438483,1778947842000,-289.516242,0.00015,2]
[422438461,1778947842000,-500.0,0.00015,2]
[422438479,1778947842000,-289.516242,0.00015,2]
[422438480,1778947842000,-289.516242,0.00015,2]
[422438486,1778947842000,-1410.422056,0.00015,2]
[422438476,1778947842000,-289.516242,0.00015,2]
[422438482,1778947842000,-289.516242,0.00015,2]
[422438481,1778947842000,-289.516242,0.00015,2]
[422438477,1778947842000,-289.516242,0.00015,2]
[422438478,1778947842000,-289.516242,0.00015,2]
[422438475,1778947842000,-229.908155,0.00015,2]
[422438469,1778947842000,-500.0,0.00015,2]
[422438484,1778947842000,-1410.422056,0.00015,2]
[422438561,1778947843000,-272.760927,0.00016438,2]
[422438566,1778947843000,-160.0,0.00016449,2]
[422438576,1778947843000,-151.0,0.00016477,2]
[422438557,1778947843000,-272.760927,0.00016438,2]
[422438563,1778947843000,-272.760927,0.00016438,2]
[422438564,1778947843000,-305.26,0.00016438,2]
[422438559,1778947843000,-272.760927,0.00016438,2]
[422438553,1778947843000,-2000.0,0.00016358,2]
[422438560,1778947843000,-272.760927,0.00016438,2]
[422438556,1778947843000,-272.760927,0.00016438,2]
[422438562,1778947843000,-272.760927,0.00016438,2]
[422438565,1778947843000,-203.5,0.00016438,2]
[422438580,1778947843000,-151.0,0.00016477,2]
[422438568,1778947843000,-988.408866,0.00016449,2]
[422438569,1778947843000,-151.0,0.00016477,2]
[422438573,1778947843000,-151.0,0.00016477,2]
[422438575,1778947843000,-151.0,0.00016477,2]
[422438570,1778947843000,-151.0,0.00016477,2]
[422438574,1778947843000,-151.0,0.00016477,2]
[422438572,1778947843000,-151.0,0.00016477,2]
[422438571,1778947843000,-151.0,0.00016477,2]
[422438588,1778947843000,-151.0,0.00016477,2]
[422438578,1778947843000,-151.0,0.00016477,2]
[422438577,1778947843000,-151.0,0.00016477,2]
[422438558,1778947843000,-272.760927,0.00016438,2]
[422438567,1778947843000,-574.204433,0.00016449,2]
[422438555,1778947843000,-900.0,0.00016438,2]
[422438537,1778947843000,-736.0,0.00015364,2]
[422438552,1778947843000,-163.42,0.00016289,2]
[422438584,1778947843000,-151.0,0.00016477,2]
[422438527,1778947843000,-363.633174,0.00015068,2]
[422438526,1778947843000,-363.633174,0.00015068,2]
[422438528,1778947843000,-363.633174,0.00015068,2]
[422438530,1778947843000,-363.633174,0.00015068,2]
[422438532,1778947843000,-363.633174,0.00015068,2]
[422438534,1778947843000,-647.19,0.00015297,2]
[422438531,1778947843000,-363.633174,0.00015068,2]
[422438529,1778947843000,-363.633174,0.00015068,2]
[422438539,1778947843000,-823.0,0.00015655,2]
[422438536,1778947843000,-4392.02,0.0001531,2]
[422438533,1778947843000,-166.55,0.00015134,2]
[422438554,1778947843000,-1288.7,0.00016438,2]
[422438535,1778947843000,-166.66,0.00015305,2]
[422438540,1778947843000,-3292.0,0.0001573,2]
[422438545,1778947843000,-163.0,0.0001604,2]
[422438551,1778947843000,-166.66,0.00016272,2]
[422438542,1778947843000,-2101.267012,0.00016,2]
[422438543,1778947843000,-300.0,0.00016,2]
[422438546,1778947843000,-847.98,0.000161,2]
[422438544,1778947843000,-158.04817434,0.00016,2]
[422438541,1778947843000,-166.66,0.00015949,2]
[422438550,1778947843000,-158.04817434,0.000162,2]
[422438547,1778947843000,-158.04817434,0.000161,2]
[422438548,1778947843000,-9999.99,0.00016116,2]
[422438549,1778947843000,-150.0,0.00016137,2]
[422438538,1778947843000,-166.66,0.00015627,2]
[422438583,1778947843000,-151.0,0.00016477,2]
[422438587,1778947843000,-151.0,0.00016477,2]
[422438629,1778947843000,-500.0,0.00017808,2]
[422438615,1778947843000,-500.0,0.00017808,2]
[422438616,1778947843000,-500.0,0.00017808,2]
[422438617,1778947843000,-500.0,0.00017808,2]
[422438621,1778947843000,-500.0,0.00017808,2]
[422438618,1778947843000,-500.0,0.00017808,2]
[422438623,1778947843000,-500.0,0.00017808,2]
[422438622,1778947843000,-500.0,0.00017808,2]
[422438625,1778947843000,-500.0,0.00017808,2]
[422438626,1778947843000,-500.0,0.00017808,2]
[422438627,1778947843000,-500.0,0.00017808,2]
[422438628,1778947843000,-500.0,0.00017808,2]
[422438631,1778947843000,-500.0,0.00017808,2]
[422438619,1778947843000,-500.0,0.00017808,2]
[422438632,1778947843000,-223.29617748,0.00017808,2]
[422438634,1778947843000,-500.0,0.00017808,2]
[422438633,1778947843000,-500.0,0.00017808,2]
[422438636,1778947843000,-500.0,0.00017808,2]
[422438635,1778947843000,-500.0,0.00017808,2]
[422438638,1778947843000,-500.0,0.00017808,2]
[422438637,1778947843000,-500.0,0.00017808,2]
[422438640,1778947843000,-500.0,0.00017808,2]
[422438641,1778947843000,-500.0,0.00017808,2]
[422438642,1778947843000,-500.0,0.00017808,2]
[422438639,1778947843000,-500.0,0.00017808,2]
[422438643,1778947843000,-500.0,0.00017808,2]
[422438579,1778947843000,-151.0,0.00016477,2]
[422438630,1778947843000,-500.0,0.00017808,2]
[422438613,1778947843000,-500.0,0.00017808,2]
[422438620,1778947843000,-500.0,0.00017808,2]
[422438614,1778947843000,-500.0,0.00017808,2]
[422438581,1778947843000,-151.0,0.00016477,2]
[422438585,1778947843000,-151.0,0.00016477,2]
[422438586,1778947843000,-151.0,0.00016477,2]
[422438582,1778947843000,-151.0,0.00016477,2]
[422438598,1778947843000,-781.66,0.000172,2]
[422438591,1778947843000,-156.61,0.00016712,2]
[422438589,1778947843000,-5619.87972295,0.000165,2]
[422438590,1778947843000,-166.66,0.00016594,2]
[422438624,1778947843000,-500.0,0.00017808,2]
[422438595,1778947843000,-166.66,0.00016916,2]
[422438593,1778947843000,-1252.0,0.0001676,2]
[422438594,1778947843000,-647.19,0.00016827,2]
[422438597,1778947843000,-1152.0,0.00017188,2]
[422438600,1778947843000,-783.006045,0.00017272,2]
[422438592,1778947843000,-300.98575584,0.00016724,3]
[422438602,1778947843000,-2312.0,0.000174,2]
[422438612,1778947843000,-500.0,0.00017808,2]
[422438601,1778947843000,-4609.0,0.00017303,2]
[422438605,1778947843000,-2132.0,0.0001772,2]
[422438603,1778947843000,-163.42,0.00017542,2]
[422438607,1778947843000,-300.0,0.00017807,2]
[422438608,1778947843000,-500.0,0.00017808,2]
[422438604,1778947843000,-792.32411823,0.000177,2]
[422438610,1778947843000,-500.0,0.00017808,2]
[422438606,1778947843000,-334.59902798,0.00017785,2]
[422438611,1778947843000,-500.0,0.00017808,2]
[422438609,1778947843000,-500.0,0.00017808,2]
[422438675,1778947844000,-286.0,0.00018872,2]
[422438685,1778947844000,-2000.0,0.00018909,2]
[422438696,1778947844000,-2000.0,0.0001891,2]
[422438686,1778947844000,-2000.0,0.00018909,2]
[422438697,1778947844000,-1108.0,0.0001891,2]
[422438683,1778947844000,-2000.0,0.00018909,2]
[422438678,1778947844000,-2000.0,0.00018909,2]
[422438680,1778947844000,-2000.0,0.00018909,2]
[422438684,1778947844000,-2000.0,0.00018909,2]
[422438682,1778947844000,-2000.0,0.00018909,2]
[422438674,1778947844000,-482.16,0.00018803,2]
[422438687,1778947844000,-2000.0,0.00018909,2]
[422438681,1778947844000,-2000.0,0.00018909,2]
[422438694,1778947844000,-2000.0,0.00018909,2]
[422438702,1778947844000,-950.0,0.0001891,2]
[422438689,1778947844000,-2000.0,0.00018909,2]
[422438693,1778947844000,-2000.0,0.00018909,2]
[422438688,1778947844000,-2000.0,0.00018909,2]
[422438690,1778947844000,-2000.0,0.00018909,2]
[422438692,1778947844000,-2000.0,0.00018909,2]
[422438691,1778947844000,-2000.0,0.00018909,2]
[422438699,1778947844000,-950.0,0.0001891,2]
[422438700,1778947844000,-950.0,0.0001891,2]
[422438698,1778947844000,-950.0,0.0001891,2]
[422438706,1778947844000,-2000.0,0.00018914,2]
[422438701,1778947844000,-950.0,0.0001891,2]
[422438707,1778947844000,-2000.0,0.00018914,2]
[422438677,1778947844000,-2000.0,0.00018909,2]
[422438695,1778947844000,-2000.0,0.0001891,2]
[422438679,1778947844000,-2000.0,0.00018909,2]
[422438646,1778947844000,-500.0,0.00017808,2]
[422438673,1778947844000,-163.42,0.00018795,2]
[422438647,1778947844000,-500.0,0.00017808,2]
[422438645,1778947844000,-500.0,0.00017808,2]
[422438644,1778947844000,-500.0,0.00017808,2]
[422438650,1778947844000,-2000.0,0.00017845,2]
[422438649,1778947844000,-500.0,0.00017808,2]
[422438651,1778947844000,-500.0,0.00017847,2]
[422438652,1778947844000,-150.0,0.00017929,2]
[422438658,1778947844000,-1800.32017362,0.000181,2]
[422438656,1778947844000,-110764.11664392,0.00018,2]
[422438659,1778947844000,-2061.07,0.00018212,2]
[422438655,1778947844000,-350.0,0.00018,2]
[422438654,1778947844000,-300.0,0.00017999,2]
[422438657,1778947844000,-290.29322813,0.00018012,2]
[422438653,1778947844000,-1237.80329437,0.00017938,2]
[422438661,1778947844000,-1250.0,0.00018269,2]
[422438672,1778947844000,-350.907679,0.0001862,2]
[422438663,1778947844000,-1754.0,0.00018286,2]
[422438662,1778947844000,-1210.0,0.00018269,2]
[422438664,1778947844000,-300.0,0.00018355,2]
[422438660,1778947844000,-1250.0,0.00018269,2]
[422438671,1778947844000,-255.453839,0.0001862,2]
[422438668,1778947844000,-1288.7,0.0001841,2]
[422438666,1778947844000,-647.19,0.00018357,2]
[422438665,1778947844000,-89528.68,0.00018356,2]
[422438669,1778947844000,-469.513462,0.00018509,2]
[422438667,1778947844000,-847.98,0.000184,2]
[422438670,1778947844000,-160.0,0.0001862,2]
[422438676,1778947844000,-300.0,0.00018908,2]
[422438709,1778947844000,-2000.0,0.00018914,2]
[422438648,1778947844000,-500.0,0.00017808,2]
[422438704,1778947844000,-482.0,0.0001891,2]
[422438736,1778947844000,-2000.0,0.00019138,2]
[422438739,1778947844000,-2000.0,0.00019138,2]
[422438738,1778947844000,-2000.0,0.00019138,2]
[422438740,1778947844000,-2000.0,0.00019138,2]
[422438744,1778947844000,-151.0,0.00019178,2]
[422438741,1778947844000,-300.0,0.00019177,2]
[422438746,1778947844000,-184.204154,0.00019178,2]
[422438745,1778947844000,-151.0,0.00019178,2]
[422438749,1778947844000,-184.204154,0.00019178,2]
[422438759,1778947844000,-1728.39807085,0.000196,2]
[422438758,1778947844000,-574.68957671,0.000196,2]
[422438760,1778947844000,-479.7,0.00019627,2]
[422438748,1778947844000,-184.204154,0.00019178,2]
[422438743,1778947844000,-18345.59,0.00019178,2]
[422438751,1778947844000,-184.204154,0.00019178,2]
[422438756,1778947844000,-2312.0,0.000194,2]
[422438752,1778947844000,-184.204154,0.00019178,2]
[422438757,1778947844000,-482.16,0.00019508,2]
[422438753,1778947844000,-184.204154,0.00019178,2]
[422438754,1778947844000,-482.16,0.00019273,2]
[422438762,1778947844000,-574.68957671,0.000198,2]
[422438761,1778947844000,-482.17,0.00019743,2]
[422438763,1778947844000,-1728.39807085,0.000198,2]
[422438764,1778947844000,-280.47,0.000199,2]
[422438766,1778947844000,-171.0,0.0002,2]
[422438765,1778947844000,-195.0,0.0002,2]
[422438767,1778947844000,-2000.0,0.0002,2]
[422438708,1778947844000,-2000.0,0.00018914,2]
[422438755,1778947844000,-479.7,0.00019353,2]
[422438742,1778947844000,-3000.0,0.00019178,2]
[422438750,1778947844000,-184.204154,0.00019178,2]
[422438737,1778947844000,-2000.0,0.00019138,2]
[422438703,1778947844000,-950.0,0.0001891,2]
[422438747,1778947844000,-184.204154,0.00019178,2]
[422438705,1778947844000,-300.0,0.00018913,2]
[422438711,1778947844000,-2000.0,0.00018914,2]
[422438712,1778947844000,-2000.0,0.00018914,2]
[422438710,1778947844000,-2000.0,0.00018914,2]
[422438720,1778947844000,-2000.0,0.00018914,2]
[422438721,1778947844000,-2000.0,0.00018914,2]
[422438714,1778947844000,-2000.0,0.00018914,2]
[422438713,1778947844000,-2000.0,0.00018914,2]
[422438718,1778947844000,-2000.0,0.00018914,2]
[422438722,1778947844000,-2000.0,0.00018914,2]
[422438716,1778947844000,-2000.0,0.00018914,2]
[422438717,1778947844000,-2000.0,0.00018914,2]
[422438719,1778947844000,-2000.0,0.00018914,2]
[422438723,1778947844000,-2000.0,0.00018914,2]
[422438733,1778947844000,-482.16,0.00019038,2]
[422438715,1778947844000,-2000.0,0.00018914,2]
[422438730,1778947844000,-4190.0,0.00019,2]
[422438731,1778947844000,-5231.1380299,0.00019,2]
[422438728,1778947844000,-300.0,0.00018999,2]
[422438729,1778947844000,-13983.25953449,0.00019,2]
[422438735,1778947844000,-2000.0,0.00019138,2]
[422438732,1778947844000,-3089.0,0.00019033,2]
[422438734,1778947844000,-2000.0,0.00019138,2]
[422438726,1778947844000,-407.163143,0.00018917,2]
[422438725,1778947844000,-2000.0,0.00018914,2]
[422438724,1778947844000,-2000.0,0.00018914,2]
[422438727,1778947844000,-416.706319,0.00018982,2]
[422438818,1778947845000,-163.42,0.00021301,2]
[422438810,1778947845000,-313.0,0.00021,2]
[422438807,1778947845000,-309.0,0.00021,2]
[422438806,1778947845000,-295.0,0.00021,2]
[422438809,1778947845000,-394.0,0.00021,2]
[422438804,1778947845000,-607.0,0.00021,2]
[422438803,1778947845000,-171.0,0.00021,2]
[422438800,1778947845000,-172.0,0.00020799,2]
[422438801,1778947845000,-847.98,0.000209,2]
[422438802,1778947845000,-195.0,0.00021,2]
[422438815,1778947845000,-179.48,0.00021273,2]
[422438805,1778947845000,-939.0,0.00021,2]
[422438811,1778947845000,-179.0,0.00021,2]
[422438830,1778947845000,-2000.0,0.00021431,2]
[422438813,1778947845000,-525.17782738,0.00021,2]
[422438812,1778947845000,-576.0,0.00021,2]
[422438822,1778947845000,-2000.0,0.00021427,2]
[422438819,1778947845000,-6463.45,0.0002137,2]
[422438821,1778947845000,-2000.0,0.00021427,2]
[422438814,1778947845000,-1508.06668125,0.00021,2]
[422438816,1778947845000,-236.0,0.0002128,2]
[422438820,1778947845000,-2000.0,0.00021427,2]
[422438835,1778947845000,-1500.0,0.00021432,2]
[422438823,1778947845000,-2000.0,0.00021427,2]
[422438824,1778947845000,-2000.0,0.00021427,2]
[422438833,1778947845000,-1500.0,0.00021432,2]
[422438808,1778947845000,-1250.0,0.00021,2]
[422438817,1778947845000,-193.0,0.0002128,2]
[422438799,1778947845000,-152.0,0.00020717,2]
[422438770,1778947845000,-295.0,0.0002,2]
[422438797,1778947845000,-150.43976418,0.0002058,2]
[422438825,1778947845000,-2000.0,0.00021427,2]
[422438772,1778947845000,-1250.0,0.0002,2]
[422438771,1778947845000,-309.0,0.0002,2]
[422438768,1778947845000,-607.0,0.0002,2]
[422438773,1778947845000,-394.0,0.0002,2]
[422438769,1778947845000,-939.0,0.0002,2]
[422438775,1778947845000,-313.0,0.0002,2]
[422438777,1778947845000,-576.0,0.0002,2]
[422438774,1778947845000,-400.0,0.0002,2]
[422438778,1778947845000,-574.68957671,0.0002,2]
[422438784,1778947845000,-2000.0,0.0002002,2]
[422438782,1778947845000,-3174.36,0.0002,2]
[422438783,1778947845000,-2000.0,0.0002001,2]
[422438798,1778947845000,-152.0,0.00020676,2]
[422438776,1778947845000,-179.0,0.0002,2]
[422438781,1778947845000,-1069.60141474,0.0002,2]
[422438779,1778947845000,-1728.39807085,0.0002,2]
[422438788,1778947845000,-1728.39807085,0.000202,2]
[422438789,1778947845000,-1288.7,0.00020381,2]
[422438786,1778947845000,-163.42,0.00020048,2]
[422438795,1778947845000,-3842.83,0.00020548,2]
[422438790,1778947845000,-574.68957671,0.000204,2]
[422438794,1778947845000,-3842.85,0.00020548,2]
[422438796,1778947845000,-19032.04,0.00020548,2]
[422438792,1778947845000,-3842.85,0.00020548,2]
[422438787,1778947845000,-574.68957671,0.000202,2]
[422438791,1778947845000,-1728.39807085,0.000204,2]
[422438793,1778947845000,-3842.85,0.00020548,2]
[422438780,1778947845000,-881.7497342,0.0002,2]
[422438832,1778947845000,-2000.0,0.00021431,2]
[422438785,1778947845000,-2859.620193,0.0002003,2]
[422438834,1778947845000,-1500.0,0.00021432,2]
[422438876,1778947845000,-243.63814301,0.0002211,2]
[422438875,1778947845000,-119876.40162128,0.00022,4]
[422438863,1778947845000,-607.0,0.00022,2]
[422438874,1778947845000,-576.0,0.00022,2]
[422438869,1778947845000,-450.0,0.00022,2]
[422438866,1778947845000,-309.0,0.00022,2]
[422438865,1778947845000,-295.0,0.00022,2]
[422438867,1778947845000,-1250.0,0.00022,2]
[422438864,1778947845000,-939.0,0.00022,2]
[422438868,1778947845000,-394.0,0.00022,2]
[422438878,1778947845000,-1000.0,0.00022251,2]
[422438877,1778947845000,-1000.0,0.00022251,2]
[422438886,1778947845000,-347.42,0.00022466,2]
[422438871,1778947845000,-179.0,0.00022,2]
[422438885,1778947845000,-325.47,0.00022466,2]
[422438887,1778947845000,-163.42,0.00022554,2]
[422438883,1778947845000,-151.09078875,0.00022407,2]
[422438884,1778947845000,-1755.33,0.00022466,2]
[422438881,1778947845000,-172.58340744,0.00022407,2]
[422438880,1778947845000,-172.58340745,0.00022407,2]
[422438882,1778947845000,-151.09078876,0.00022407,2]
[422438889,1778947845000,-2500.0,0.00022683,2]
[422438891,1778947845000,-1350.0,0.00022683,7]
[422438892,1778947845000,-504.39606941,0.00022713,2]
[422438894,1778947845000,-1737.55151806,0.00022831,2]
[422438893,1778947845000,-2312.0,0.0002272,3]
[422438890,1778947845000,-950.0,0.00022683,2]
[422438831,1778947845000,-2000.0,0.00021431,2]
[422438879,1778947845000,-1288.7,0.00022353,2]
[422438861,1778947845000,-195.0,0.00022,2]
[422438888,1778947845000,-180.48177615,0.00022652,2]
[422438862,1778947845000,-171.0,0.00022,2]
[422438870,1778947845000,-313.0,0.00022,2]
[422438826,1778947845000,-2000.0,0.00021427,2]
[422438827,1778947845000,-2000.0,0.00021427,2]
[422438829,1778947845000,-2000.0,0.00021427,2]
[422438828,1778947845000,-2000.0,0.00021427,2]
[422438836,1778947845000,-1500.0,0.00021432,2]
[422438838,1778947845000,-1500.0,0.00021432,2]
[422438841,1778947845000,-1500.0,0.00021432,2]
[422438842,1778947845000,-1342.0,0.00021432,2]
[422438840,1778947845000,-1500.0,0.00021432,2]
[422438839,1778947845000,-1500.0,0.00021432,2]
[422438847,1778947845000,-225.14220559,0.000215,2]